bitfinex/quotes_BTCUSD_20240831
["timestamp","ask_amount","ask_price","bid_price","bid_amount"]
[1725096576485,0.005818,59095.0,59094.0,0.2033998]
[1725096576896,0.000818,59095.0,59094.0,0.2073998]
[1725096577098,0.000818,59095.0,59094.0,0.2033998]
[1725096577329,0.000818,59095.0,59094.0,0.3726208]
[1725096577537,0.000818,59095.0,59094.0,0.2033998]
[1725096578733,0.000818,59095.0,59094.0,0.2133998]
[1725096578939,0.02736775,59095.0,59094.0,0.3726208]
[1725096579153,0.02736775,59095.0,59094.0,0.3836208]
[1725096579610,0.02736775,59095.0,59094.0,0.3906208]
[1725096580520,0.02736775,59095.0,59094.0,0.7290638]
[1725096586085,0.000818,59095.0,59094.0,0.7290638]
[1725096586758,0.000818,59095.0,59094.0,1.0675068]
[1725096590405,0.02736653,59095.0,59094.0,1.0675068]
[1725096595992,0.000818,59095.0,59094.0,1.0675068]
[1725096598119,0.4946059,59105.0,59100.0,0.1689411]
[1725096598324,0.4946059,59105.0,59101.0,0.0892]
[1725096598743,0.169195,59104.0,59101.0,0.0892]
[1725096598949,0.169195,59104.0,59103.0,0.0892]
[1725096599375,0.19574192,59104.0,59103.0,0.0892]
[1725096601957,0.19874192,59104.0,59103.0,0.0892]
[1725096603177,0.53712792,59104.0,59103.0,0.0892]
[1725096604083,0.19874192,59104.0,59103.0,0.0892]
[1725096604750,0.53712792,59104.0,59103.0,0.0892]
[1725096606041,0.510581,59104.0,59103.0,0.0892]
[1725096607363,0.169203,59101.0,59099.0,0.0892]
[1725096607573,0.169202,59101.0,59099.0,0.0892]
[1725096607785,0.507613,59100.0,59099.0,0.0892]
[1725096608007,0.507657,59095.0,59092.0,0.0008998]
[1725096608427,0.507657,59095.0,59094.0,0.0900998]
[1725096609027,0.169219,59095.0,59094.0,0.0900998]
[1725096609236,0.169219,59095.0,59094.0,0.1010998]
[1725096609985,0.507657,59095.0,59094.0,0.1010998]
[1725096610817,0.53420571,59095.0,59094.0,0.1010998]
[1725096611128,0.53420571,59095.0,59094.0,0.1080998]
[1725096616072,0.507657,59095.0,59094.0,0.1080998]
[1725096616288,0.846095,59095.0,59094.0,0.1080998]
[1725096619362,0.87264476,59095.0,59094.0,0.1080998]
[1725096622281,0.846095,59095.0,59094.0,0.1080998]
[1725096625471,0.87264477,59095.0,59094.0,0.1080998]
[1725096629344,0.846095,59095.0,59094.0,0.1080998]
[1725096631159,1.574773,59095.0,59094.0,0.0188998]
[1725096632083,1.574773,59095.0,59094.0,0.0078998]
[1725096632280,1.54158196,59095.0,59094.0,0.0008998]
[1725096632765,1.54258196,59095.0,59094.0,0.0008998]
[1725096633610,1.56913511,59095.0,59094.0,0.0008998]
[1725096633817,1.56813511,59095.0,59094.0,0.0008998]
[1725096634077,1.57113511,59095.0,59094.0,0.0008998]
[1725096634282,1.56913511,59095.0,59094.0,0.0008998]
[1725096635999,1.54258196,59095.0,59094.0,0.0008998]
[1725096639203,1.64258196,59095.0,59094.0,0.0008998]
[1725096639383,1.66913527,59095.0,59094.0,0.0008998]
[1725096639828,1.67113527,59095.0,59094.0,0.0008998]
[1725096641991,1.83968691,59095.0,59094.0,0.0008998]
[1725096642202,1.64258196,59095.0,59094.0,0.0008998]
[1725096645487,1.66913529,59095.0,59094.0,0.0008998]
[1725096646069,1.64258196,59095.0,59094.0,0.0008998]
[1725096646700,1.285533,59095.0,59094.0,0.0008998]
[1725096646925,1.285533,59095.0,59094.0,0.0852998]
[1725096648235,0.270219,59095.0,59094.0,0.0852998]
[1725096648441,0.001,59095.0,59094.0,0.2545208]
[1725096648648,0.001,59095.0,59094.0,0.1881998]
[1725096652458,0.001,59095.0,59094.0,0.3574208]
[1725096652682,0.02754942,59095.0,59094.0,0.3574208]
[1725096655646,0.02836742,59095.0,59094.0,0.3574208]
[1725096656078,0.001818,59095.0,59094.0,0.3574208]
[1725096656279,0.001818,59095.0,59094.0,0.6958638]
[1725096656934,0.001818,59095.0,59094.0,1.3727498]
[1725096657395,0.001818,59095.0,59094.0,1.0343068]
[1725096658042,0.001818,59095.0,59094.0,1.0453068]
[1725096658466,0.000818,59095.0,59094.0,1.044407]
[1725096658683,0.000818,59095.0,59094.0,1.0443068]
[1725096662510,0.000818,59095.0,59094.0,1.3827498]
[1725096662921,0.000818,59095.0,59094.0,1.4166998]
[1725096663344,0.000818,59095.0,59094.0,1.4446998]
[1725096663553,0.000818,59095.0,59094.0,1.7831428]
[1725096664068,0.000818,59095.0,59094.0,1.7721428]
[1725096664299,0.000818,59095.0,59094.0,1.7861428]
[1725096664511,0.000818,59095.0,59094.0,1.7881428]
[1725096664733,0.000818,59095.0,59094.0,1.7791428]
[1725096664922,0.000818,59095.0,59094.0,1.7931428]
[1725096665587,0.000818,59095.0,59094.0,1.7791428]
[1725096665802,0.000818,59095.0,59094.0,1.79771109]
[1725096666015,0.000818,59095.0,59094.0,1.81171109]
[1725096666661,0.000818,59095.0,59094.0,1.80971109]
[1725096667082,0.000818,59095.0,59094.0,1.81171109]
[1725096667514,0.000818,59100.0,59099.0,1.96704482]
[1725096667734,0.000818,59100.0,59099.0,1.99204482]
[1725096667973,0.000818,59100.0,59099.0,2.00204482]
[1725096668204,0.000818,59100.0,59099.0,2.10204482]
[1725096668411,0.000818,59104.0,59103.0,1.189372]
[1725096668629,0.000818,59104.0,59103.0,1.48996482]
[1725096669704,0.000818,59104.0,59103.0,1.50396482]
[1725096669948,0.169144,59121.0,59117.0,0.169154]
[1725096670166,0.169144,59121.0,59114.0,0.0847]
[1725096670167,0.169157,59117.0,59114.0,0.0847]
[1725096670383,0.338304,59119.0,59114.0,0.0847]
[1725096670630,0.169161,59115.0,59114.0,0.0847]
[1725096672163,0.169161,59115.0,59114.0,0.0917]
[1725096672599,0.02653921,59115.0,59114.0,0.0917]
[1725096672805,0.02653921,59115.0,59114.0,0.0887]
[1725096673828,0.02653921,59115.0,59114.0,0.0847]
[1725096674242,0.02653921,59115.0,59114.0,0.266864]
[1725096674454,0.02653921,59115.0,59114.0,0.701693]
[1725096674852,0.02653921,59115.0,59114.0,0.708693]
[1725096675058,0.02653921,59115.0,59114.0,0.719693]
[1725096675266,0.02653921,59115.0,59114.0,1.896351]
[1725096675474,0.02653921,59115.0,59114.0,1.919351]
[1725096675707,0.02653921,59115.0,59114.0,1.895351]
[1725096676129,0.16913,59126.0,59120.0,0.09]
[1725096676344,0.1,59130.0,59123.0,0.09]
[1725096676345,0.169129,59127.0,59123.0,0.09]
[1725096676561,0.33825,59128.0,59123.0,0.09]
[1725096676775,0.169128,59127.0,59123.0,0.09]
[1725096676982,0.169128,59127.0,59123.0,0.259138]
[1725096677977,0.169128,59127.0,59123.0,0.1]
[1725096678176,0.169128,59127.0,59123.0,0.09]
[1725096678354,0.16913,59126.0,59123.0,0.09]
[1725096678558,0.16913,59126.0,59123.0,0.11]
[1725096679173,0.16913,59126.0,59123.0,0.101]
[1725096679385,0.19566649,59126.0,59123.0,0.101]
[1725096679979,0.19566649,59126.0,59123.0,0.09]
[1725096680390,0.19566649,59126.0,59123.0,0.102]
[1725096680998,0.19566649,59126.0,59123.0,0.09]
[1725096681426,0.19566649,59126.0,59123.0,0.101]
[1725096681861,0.19566649,59126.0,59123.0,0.111]
[1725096682502,0.19566649,59126.0,59123.0,0.101]
[1725096682699,0.19566649,59126.0,59125.0,0.09]
[1725096683110,0.16913,59126.0,59125.0,0.09]
[1725096683852,0.507376,59128.0,59125.0,0.09]
[1725096684066,0.169127,59127.0,59125.0,0.101]
[1725096684274,0.438239,59130.0,59125.0,0.101]
[1725096684485,0.16913,59126.0,59125.0,0.101]
[1725096684873,0.16913,59126.0,59125.0,0.09]
[1725096685210,0.33825,59128.0,59125.0,0.108]
[1725096685410,0.16913,59126.0,59125.0,0.108]
[1725096685834,0.169129,59127.0,59125.0,0.108]
[1725096686035,0.169127,59127.0,59125.0,0.099]
[1725096686273,0.338239,59130.0,59125.0,0.099]
[1725096686483,0.19566261,59127.0,59125.0,0.106]
[1725096686696,0.19566261,59127.0,59125.0,0.097]
[1725096686881,0.19566261,59127.0,59125.0,0.101]
[1725096687243,0.19566261,59127.0,59125.0,0.09]
[1725096687424,0.19566261,59127.0,59125.0,0.098]
[1725096687883,0.19566261,59127.0,59125.0,0.09]
[1725096688248,0.19566261,59127.0,59125.0,0.108]
[1725096688869,0.02653561,59127.0,59125.0,0.108]
[1725096689078,0.02653561,59127.0,59126.0,0.70579]
[1725096689654,0.02653561,59127.0,59126.0,1.04405]
[1725096690515,0.00818,59133.0,59128.0,0.705473]
[1725096690725,0.00818,59133.0,59128.0,1.043722]
[1725096691874,0.00818,59133.0,59128.0,1.389971]
[1725096692078,0.00818,59133.0,59128.0,1.395971]
[1725096695222,0.00818,59133.0,59128.0,1.418971]
[1725096699728,0.00818,59133.0,59128.0,1.923971]
[1725096699957,0.00818,59133.0,59128.0,1.957921]
[1725096700826,0.00818,59133.0,59128.0,1.949921]
[1725096701067,0.00818,59133.0,59128.0,1.963921]
[1725096701283,0.00818,59133.0,59128.0,1.943921]
[1725096701462,0.00818,59133.0,59128.0,1.957921]
[1725096701781,0.00818,59133.0,59128.0,1.971921]
[1725096701996,0.00818,59133.0,59128.0,1.957921]
[1725096702636,0.00818,59133.0,59128.0,1.971921]
[1725096703596,0.00818,59133.0,59128.0,1.99045372]
[1725096707771,0.00818,59133.0,59128.0,2.33870272]
[1725096707965,0.00818,59133.0,59128.0,2.43870272]
[1725096708798,0.00818,59133.0,59128.0,2.44070272]
[1725096711860,0.00818,59133.0,59132.0,1.433741]
[1725096712063,0.00818,59133.0,59132.0,3.03935982]
[1725096712914,0.00818,59133.0,59132.0,3.05453982]
[1725096714002,0.00818,59133.0,59132.0,3.06853982]
[1725096714172,0.00818,59133.0,59132.0,3.05453982]
[1725096714604,0.00818,59133.0,59132.0,3.06853982]
[1725096715094,0.00818,59133.0,59132.0,2.971547]
[1725096715306,0.00818,59133.0,59132.0,2.985547]
[1725096715512,0.00818,59133.0,59132.0,3.08053982]
[1725096715721,0.00818,59133.0,59132.0,3.08253982]
[1725096715920,0.00818,59133.0,59132.0,3.06853982]
[1725096716292,0.00818,59133.0,59132.0,3.08253982]
[1725096716730,0.00818,59133.0,59132.0,3.40676582]
[1725096717149,0.00818,59133.0,59132.0,3.42076582]
[1725096717585,0.00818,59133.0,59132.0,3.40676582]
[1725096718244,0.00818,59133.0,59132.0,3.42076582]
[1725096720244,0.00818,59133.0,59132.0,2.74036582]
[1725096723156,0.00818,59133.0,59132.0,2.91916582]
[1725096723383,1e-06,59133.0,59132.0,2.74036582]
[1725096724538,1e-06,59133.0,59132.0,2.657373]
[1725096724766,1e-06,59133.0,59132.0,2.40013982]
[1725096725819,1e-06,59133.0,59132.0,2.40213982]
[1725096726470,0.000179,59133.0,59132.0,2.40213982]
[1725096726673,0.0164,59151.0,59139.0,0.00145654]
[1725096726902,0.0164,59151.0,59150.0,0.507184]
[1725096728145,0.0164,59151.0,59150.0,0.521184]
[1725096728862,0.00818,59152.0,59151.0,0.169058]
[1725096729071,0.00818,59152.0,59151.0,0.507175]
[1725096729491,0.00818,59152.0,59151.0,0.845292]
[1725096730290,0.00818,59152.0,59151.0,0.535175]
[1725096730703,0.00818,59152.0,59151.0,0.197058]
[1725096730877,0.13288,59152.0,59151.0,0.535175]
[1725096732131,0.00818,59152.0,59151.0,0.873292]
[1725096733260,0.00818,59152.0,59151.0,1.211409]
[1725096737220,0.00818,59152.0,59151.0,0.535175]
[1725096737371,0.13288,59152.0,59151.0,0.197058]
[1725096737582,0.13288,59152.0,59151.0,0.535175]
[1725096738551,0.13288,59152.0,59151.0,0.197058]
[1725096739470,0.13288,59152.0,59151.0,0.028]
[1725096740315,0.640046,59152.0,59151.0,0.028]
[1725096740524,0.301935,59152.0,59151.0,0.028]
[1725096741169,0.640046,59152.0,59151.0,0.028]
[1725096741389,0.639411,59152.0,59151.0,0.028]
[1725096742034,0.977522,59152.0,59151.0,0.028]
[1725096742455,0.639411,59152.0,59151.0,0.028]
[1725096743846,0.66593405,59152.0,59151.0,0.028]
[1725096744497,1.00404505,59152.0,59151.0,0.028]
[1725096744687,0.66593405,59152.0,59151.0,0.028]
[1725096745236,1.00404505,59152.0,59151.0,0.028]
[1725096745435,0.66593405,59152.0,59151.0,0.028]
[1725096746035,0.639411,59152.0,59151.0,0.028]
[1725096746894,0.977522,59152.0,59151.0,0.028]
[1725096748285,1.315633,59152.0,59151.0,0.028]
[1725096749360,1.315633,59152.0,59151.0,0.014]
[1725096749565,0.16909,59140.0,59139.0,0.00293534]
[1725096750403,0.50727,59140.0,59139.0,0.00293534]
[1725096750617,0.84545,59140.0,59139.0,0.00293534]
[1725096751234,0.87197709,59140.0,59139.0,0.00293534]
[1725096752211,0.70288709,59140.0,59139.0,0.00293534]
[1725096752591,0.87197709,59140.0,59139.0,0.01693534]
[1725096753073,0.87197709,59140.0,59139.0,0.02993534]
[1725096754167,0.53379709,59140.0,59139.0,0.02993534]
[1725096754376,0.19561709,59140.0,59139.0,0.02993534]
[1725096756165,0.16909,59140.0,59139.0,0.02993534]
[1725096759228,0.1269,59144.0,59139.0,0.02993534]
[1725096759466,0.007545,59152.0,59144.0,0.169076]
[1725096759467,0.169065,59149.0,59144.0,0.169076]
[1725096759708,0.338122,59151.0,59142.0,0.338167]
[1725096759916,0.16906,59151.0,59146.0,0.0858]
[1725096760124,0.16906,59151.0,59146.0,0.254872]
[1725096760125,0.02652517,59148.0,59146.0,0.254872]
[1725096760329,0.02652517,59148.0,59146.0,0.0858]
[1725096760534,0.02652517,59148.0,59142.0,0.338167]
[1725096760535,0.02652517,59148.0,59142.0,0.0858]
[1725096760739,0.19559417,59148.0,59144.0,0.169078]
[1725096760941,0.19559417,59148.0,59144.0,0.174078]
[1725096761357,0.02652517,59148.0,59146.0,0.003]
[1725096761945,0.02652517,59148.0,59145.0,0.169074]
[1725096762617,0.02652517,59148.0,59142.0,0.0858]
[1725096762842,0.02652517,59148.0,59145.0,0.169075]
[1725096763617,0.02652517,59148.0,59146.0,0.01]
[1725096763957,0.02652517,59148.0,59145.0,0.169075]
[1725096764130,0.02652517,59148.0,59146.0,0.169071]
[1725096764732,0.02652517,59148.0,59146.0,0.181071]
[1725096765172,0.02652517,59148.0,59146.0,0.191071]
[1725096765361,0.02652517,59148.0,59146.0,0.022]
[1725096765953,0.169062,59150.0,59146.0,0.191072]
[1725096766876,0.000818,59148.0,59146.0,0.181072]
[1725096767067,0.000818,59148.0,59146.0,0.169072]
[1725096767243,0.000818,59148.0,59147.0,0.16907]
[1725096768628,0.000818,59148.0,59147.0,0.18107]
[1725096769036,0.000818,59148.0,59147.0,0.012]
[1725096769463,0.02734285,59148.0,59147.0,0.012]
[1725096769666,0.018218,59148.0,59147.0,0.012]
[1725096770400,0.187285,59148.0,59147.0,0.012]
[1725096770832,0.187285,59148.0,59147.0,0.022]
[1725096771034,0.969253,59148.0,59147.0,0.022]
[1725096772937,0.99577835,59148.0,59147.0,0.022]
[1725096776839,0.87267835,59148.0,59147.0,0.2194]
[1725096777013,0.02734335,59148.0,59147.0,0.2194]
[1725096778032,0.02734335,59148.0,59147.0,0.2094]
[1725096778223,0.19641035,59148.0,59147.0,0.0855]
[1725096778431,0.19641035,59148.0,59147.0,0.0955]
[1725096779696,0.19641035,59148.0,59147.0,0.1095]
[1725096779901,0.19641035,59148.0,59147.0,0.0995]
[1725096780108,0.19641035,59148.0,59147.0,0.0855]
[1725096780320,0.19641035,59148.0,59147.0,0.1095]
[1725096780537,0.53454435,59148.0,59147.0,0.1095]
[1725096780749,0.53454435,59148.0,59147.0,0.024]
[1725096781185,0.87267835,59148.0,59147.0,0.024]
[1725096787371,0.846153,59148.0,59147.0,0.024]
[1725096790640,0.8726782,59148.0,59147.0,0.024]
[1725096793412,0.5345442,59148.0,59147.0,0.024]
[1725096794050,0.8726782,59148.0,59147.0,0.024]
[1725096794459,0.8726782,59148.0,59147.0,0.013]
[1725096794692,0.169076,59145.0,59143.0,0.0855]
[1725096795904,0.507261,59141.0,59140.0,0.0008998]
[1725096796353,0.845435,59141.0,59140.0,0.0008998]
[1725096797524,0.845435,59141.0,59140.0,0.0168998]
[1725096800031,0.87196283,59141.0,59140.0,0.0168998]
[1725096801206,1.21013683,59141.0,59140.0,0.0168998]
[1725096801411,0.87196283,59141.0,59140.0,0.0168998]
[1725096802093,0.87163753,59141.0,59140.0,0.0168998]
[1725096802842,0.87163753,59141.0,59140.0,0.0098998]
[1725096803248,0.53346353,59141.0,59140.0,0.0874998]
[1725096803433,0.53346353,59141.0,59140.0,0.0904998]
[1725096803859,0.5069357,59141.0,59140.0,0.0904998]
[1725096804065,0.5069357,59141.0,59140.0,0.0894998]
[1725096804268,0.8451097,59141.0,59140.0,0.0894998]
[1725096804504,0.5069357,59141.0,59140.0,0.0914998]
[1725096805465,0.5069357,59141.0,59140.0,0.0884998]
[1725096805668,0.5069357,59141.0,59140.0,0.0974998]
[1725096805992,0.5069357,59141.0,59140.0,0.0864998]
[1725096806170,0.5069357,59141.0,59140.0,0.0934998]
[1725096806372,0.5069357,59141.0,59140.0,0.1034998]
[1725096806557,0.5069357,59141.0,59140.0,0.0964998]
[1725096806960,0.5069357,59141.0,59140.0,0.1044998]
[1725096807168,0.53346273,59141.0,59140.0,0.1044998]
[1725096807367,0.53346273,59141.0,59140.0,0.0964998]
[1725096807803,0.53346273,59141.0,59140.0,0.1034998]
[1725096808252,0.53346273,59141.0,59140.0,0.0934998]
[1725096809040,0.19561403,59141.0,59140.0,0.0934998]
[1725096809175,0.53378803,59141.0,59140.0,0.0864998]
[1725096809383,0.507261,59141.0,59140.0,0.0944998]
[1725096809590,0.169087,59141.0,59140.0,0.1034998]
[1725096809909,0.169087,59141.0,59140.0,0.0954998]
[1725096810268,0.169087,59141.0,59140.0,0.1024998]
[1725096810513,0.169087,59141.0,59140.0,0.0934998]
[1725096810688,0.169087,59141.0,59140.0,0.0964998]
[1725096811199,0.169087,59141.0,59140.0,0.1044998]
[1725096811395,0.169082,59143.0,59140.0,0.1044998]
[1725096811692,0.169081,59143.0,59140.0,0.1044998]
[1725096812250,0.169077,59145.0,59141.0,0.0839]
[1725096812598,0.19560376,59145.0,59141.0,0.0839]
[1725096813219,0.02652676,59145.0,59141.0,0.0839]
[1725096813588,0.19560376,59145.0,59141.0,0.0899]
[1725096814207,0.169079,59144.0,59141.0,0.0939]
[1725096815845,0.02652676,59145.0,59141.0,0.0939]
[1725096816020,0.19560476,59145.0,59141.0,0.0939]
[1725096816173,0.000818,59143.0,59141.0,0.0899]
[1725096816388,0.000818,59143.0,59142.0,0.70275]
[1725096816846,0.02734254,59143.0,59142.0,0.70275]
[1725096817488,0.000818,59143.0,59142.0,0.70275]
[1725096818145,0.000818,59143.0,59142.0,0.71075]
[1725096818366,0.000818,59143.0,59142.0,0.71675]
[1725096819465,0.000818,59143.0,59142.0,0.378584]
[1725096819890,0.169079,59144.0,59142.0,0.1022]
[1725096820132,0.169076,59145.0,59142.0,0.1022]
[1725096820790,0.169076,59145.0,59142.0,0.0962]
[1725096820972,0.338159,59144.0,59140.0,0.0008998]
[1725096821179,0.169082,59143.0,59142.0,0.005]
[1725096821517,0.169082,59143.0,59142.0,0.011]
[1725096821674,0.507245,59143.0,59142.0,0.011]
[1725096822264,0.169082,59143.0,59142.0,0.011]
[1725096822913,0.169082,59143.0,59142.0,0.005]
[1725096823079,0.169082,59143.0,59140.0,0.0008998]
[1725096823283,0.507245,59143.0,59142.0,0.008]
[1725096823499,0.507245,59143.0,59142.0,0.012]
[1725096823938,0.169084,59142.0,59140.0,0.0008998]
[1725096824331,0.169084,59142.0,59140.0,0.0148998]
[1725096824560,0.169084,59142.0,59140.0,0.0068998]
[1725096824710,0.169084,59142.0,59140.0,0.0008998]
[1725096826762,0.169084,59142.0,59140.0,0.0078998]
[1725096827061,0.169084,59142.0,59140.0,0.0168998]
[1725096828089,0.338163,59143.0,59140.0,0.0168998]
[1725096828661,0.169087,59141.0,59140.0,0.0168998]
[1725096829434,0.02652756,59141.0,59140.0,0.0098998]
[1725096829750,0.02652756,59141.0,59140.0,0.0008998]
[1725096830212,0.02652756,59141.0,59140.0,0.0148998]
[1725096830365,0.02652756,59141.0,59140.0,0.0068998]
[1725096830773,0.02652756,59141.0,59140.0,0.0108998]
[1725096831451,0.02652756,59141.0,59140.0,0.0188998]
[1725096832199,0.169079,59144.0,59141.0,0.0848]
[1725096832942,0.169894,59145.0,59141.0,0.253887]
[1725096833356,0.000818,59145.0,59142.0,0.169082]
[1725096833768,0.000818,59145.0,59143.0,0.169081]
[1725096834611,0.000818,59145.0,59144.0,0.0848]
[1725096835469,0.02734436,59145.0,59144.0,0.0848]
[1725096836640,0.02734436,59145.0,59144.0,0.0888]
[1725096837406,0.02734436,59145.0,59144.0,0.0948]
[1725096837605,0.02734436,59145.0,59144.0,0.2068]
[1725096837856,0.02734436,59145.0,59144.0,0.375878]
[1725096838049,0.000818,59145.0,59144.0,0.375878]
[1725096839035,0.000818,59145.0,59144.0,0.2068]
[1725096842327,0.02734363,59145.0,59144.0,0.2068]
[1725096842954,0.02734363,59145.0,59144.0,0.375878]
[1725096845996,0.000818,59145.0,59144.0,0.375878]
[1725096846642,0.16948704,59148.0,59144.0,0.375878]
[1725096847203,0.169071,59147.0,59144.0,0.375878]
[1725096847584,0.169071,59147.0,59144.0,0.369878]
[1725096847783,0.169071,59147.0,59144.0,0.365878]
[1725096847998,0.169071,59147.0,59144.0,0.367878]
[1725096848145,0.169071,59147.0,59144.0,0.1988]
[1725096849133,0.169071,59147.0,59144.0,0.1978]
[1725096849341,0.19559672,59147.0,59144.0,0.1978]
[1725096849543,0.19559672,59147.0,59144.0,0.2008]
[1725096849790,0.19559672,59147.0,59144.0,0.1998]
[1725096850004,0.19559672,59147.0,59144.0,0.2018]
[1725096850331,0.169073,59146.0,59144.0,0.2018]
[1725096851124,0.169073,59146.0,59144.0,0.1998]
[1725096852299,0.33855704,59148.0,59144.0,0.1976998]
[1725096852504,0.507226,59145.0,59144.0,0.0048998]
[1725096852731,0.507226,59145.0,59144.0,0.0078998]
[1725096853388,0.845377,59145.0,59144.0,0.0038998]
[1725096853964,0.845377,59145.0,59144.0,0.0068998]
[1725096854138,0.845377,59145.0,59144.0,0.0108998]
[1725096855486,0.87190403,59145.0,59144.0,0.0108998]
[1725096855872,0.845377,59145.0,59144.0,0.0108998]
[1725096857246,0.507261,59141.0,59140.0,0.0008998]
[1725096857454,1.201909,59141.0,59140.0,0.0008998]
[1725096859416,1.203909,59141.0,59140.0,0.0008998]
[1725096859872,1.203909,59141.0,59140.0,0.0018998]
[1725096860278,1.203909,59141.0,59140.0,0.0008998]
[1725096860872,1.206909,59141.0,59140.0,0.0008998]
[1725096861817,1.657183,59141.0,59140.0,0.0008998]
[1725096862039,1.757183,59141.0,59140.0,0.0008998]
[1725096862739,1.757183,59141.0,59129.0,0.0008998]
[1725096862740,1.522066,59130.0,59129.0,0.0008998]
[1725096862975,0.507364,59129.0,59128.0,0.0008998]
[1725096863266,1.642393,59129.0,59128.0,0.0008998]
[1725096863460,1.69165744,59129.0,59128.0,0.0008998]
[1725096864015,1.68965744,59129.0,59128.0,0.0008998]
[1725096865702,1.69665744,59129.0,59128.0,0.0018998]
[1725096865857,1.72112973,59129.0,59128.0,0.0028998]
[1725096866203,1.71512973,59129.0,59128.0,0.0018998]
[1725096866700,1.72112973,59129.0,59128.0,0.0028998]
[1725096868122,1.67386529,59129.0,59128.0,0.0028998]
[1725096870428,0.005,59126.0,59118.0,0.0008998]
[1725096870636,1.18405,59119.0,59118.0,0.0008998]
[1725096871077,1.0149,59119.0,59118.0,0.0008998]
[1725096871284,1.18405,59119.0,59118.0,0.0008998]
[1725096872444,0.87228828,59119.0,59118.0,0.0008998]
[1725096873092,0.87228828,59119.0,59118.0,0.0058998]
[1725096873718,0.87228828,59119.0,59118.0,0.0098998]
[1725096874961,0.87228828,59119.0,59118.0,0.0058998]
[1725096875287,0.87328828,59119.0,59118.0,0.0008998]
[1725096875918,0.84575,59119.0,59118.0,0.0018998]
[1725096876112,0.84675,59119.0,59118.0,0.0018998]
[1725096877163,0.84675,59119.0,59118.0,0.0008998]
[1725096878577,0.84675,59119.0,59118.0,0.0018998]
[1725096879594,0.50845,59119.0,59118.0,0.0018998]
[1725096879950,0.50845,59119.0,59118.0,0.0945998]
[1725096883244,0.53498879,59119.0,59118.0,0.0945998]
[1725096886003,0.50845,59119.0,59118.0,0.0945998]
[1725096886842,0.50845,59119.0,59118.0,0.2074998]
[1725096888168,0.509269,59119.0,59118.0,0.2074998]
[1725096889112,0.170969,59119.0,59118.0,0.2074998]
[1725096889320,0.1954716,59119.0,59118.0,0.2074998]
[1725096889682,0.5337716,59119.0,59118.0,0.2074998]
[1725096889917,0.1954716,59119.0,59118.0,0.2074998]
[1725096890131,0.02835749,59119.0,59118.0,0.2074998]
[1725096890523,0.19750749,59119.0,59118.0,0.2074998]
[1725096891620,0.02835749,59119.0,59118.0,0.3766528]
[1725096892169,0.001819,59119.0,59118.0,0.3766528]
[1725096892666,0.000819,59119.0,59118.0,0.3756528]
[1725096893006,0.001819,59119.0,59118.0,0.3866528]
[1725096895347,0.02835684,59119.0,59118.0,0.3866528]
[1725096898215,0.02835684,59119.0,59118.0,0.2174998]
[1725096899376,0.001819,59119.0,59118.0,0.2174998]
[1725096902839,0.02835702,59119.0,59118.0,0.2174998]
[1725096904681,0.02835702,59119.0,59118.0,0.2124998]
[1725096904892,0.02835702,59119.0,59118.0,0.3816528]
[1725096905087,0.02835702,59119.0,59118.0,0.2124998]
[1725096905472,0.338279,59123.0,59118.0,0.1239]
[1725096905823,0.169143,59122.0,59118.0,0.293052]
[1725096906064,0.169145,59121.0,59118.0,0.1239]
[1725096906844,0.169145,59121.0,59118.0,0.1189]
[1725096907376,0.169145,59121.0,59118.0,0.1129]
[1725096907509,0.169145,59121.0,59118.0,0.1149]
[1725096907711,0.169145,59121.0,59119.0,0.0892]
[1725096909033,0.169147,59120.0,59119.0,0.0892]
[1725096909431,0.169147,59120.0,59119.0,0.0932]
[1725096910486,0.169147,59120.0,59119.0,0.0972]
[1725096910690,0.169147,59120.0,59119.0,0.0932]
[1725096911087,0.169147,59120.0,59119.0,0.0982]
[1725096914284,0.169966,59120.0,59119.0,0.0982]
[1725096914420,0.1965039,59120.0,59119.0,0.0982]
[1725096916021,0.169966,59120.0,59119.0,0.0982]
[1725096916232,0.50826,59120.0,59119.0,0.0982]
[1725096919491,0.50826,59120.0,59119.0,0.009]
[1725096919492,0.8730921,59120.0,59119.0,0.009]
[1725096919897,1.2113861,59120.0,59119.0,0.009]
[1725096921934,0.5347981,59120.0,59119.0,0.2125]
[1725096923001,0.1965041,59120.0,59119.0,0.2125]
[1725096923115,0.169966,59120.0,59119.0,0.2125]
[1725096923315,0.50826,59120.0,59119.0,0.2125]
[1725096923759,0.169966,59120.0,59119.0,0.2125]
[1725096925397,0.19650373,59120.0,59119.0,0.2125]
[1725096926897,0.19650373,59120.0,59119.0,0.2085]
[1725096927325,0.19650373,59120.0,59119.0,0.2145]
[1725096927845,0.19650373,59120.0,59119.0,0.2154009]
[1725096928089,0.19650373,59120.0,59119.0,0.2104009]
[1725096928456,0.19750373,59120.0,59119.0,0.2174009]
[1725096928663,0.19750373,59120.0,59119.0,0.2114009]
[1725096929071,0.19750373,59120.0,59119.0,0.2164009]
[1725096929284,0.19650373,59120.0,59119.0,0.2094009]
[1725096929693,0.19650373,59120.0,59119.0,0.2164009]
[1725096930268,0.02735673,59120.0,59119.0,0.3855509]
[1725096931418,0.02735673,59120.0,59119.0,0.39706266]
[1725096932434,0.02735673,59120.0,59119.0,1.41196266]
[1725096932861,0.000819,59120.0,59119.0,1.41196266]
[1725096934487,0.000819,59120.0,59119.0,1.40496266]
[1725096934916,0.000819,59120.0,59119.0,1.41396266]
[1725096935356,0.000819,59120.0,59119.0,1.42096266]
[1725096935723,0.000819,59120.0,59119.0,1.41396266]
[1725096936111,0.000819,59120.0,59119.0,1.76626266]
[1725096936327,0.000819,59120.0,59119.0,2.27126266]
[1725096936561,0.000819,59120.0,59119.0,2.29426266]
[1725096938759,0.50540786,59136.0,59135.0,0.845522]
[1725096938966,0.50540786,59136.0,59135.0,1.047922]
[1725096939196,0.1,59143.0,59140.0,0.0863]
[1725096939658,0.269082,59143.0,59140.0,0.0863]
[1725096941161,0.269901,59143.0,59140.0,0.0863]
[1725096941883,0.105819,59143.0,59139.0,0.338183]